{"text_format":"1","workbook":"xlsx","n_sheets":3,"sheets":["PTT","Round 5","Sheet"],"not_rendered":{"charts":0,"images":2,"macros":1,"external_links":1,"defined_names":10,"comments":1,"pivot_tables":0},"unopened":[],"bounds":{"document_bytes":16777216,"sheet_cells":100000,"rows_first":2000,"rows_last":500,"rows_between":2000,"halvings":0,"cell_chars":16384,"cell_head_chars":4096},"cells_cut":0,"cells_raw":0,"read":"whole","date_system":"1900"}

{"sheet":"PTT","index":0,"n_rows":53,"n_cols":27,"rows_kept":53,"cut":false,"hidden":false,"merged":[[0,4,0,19],[7,4,7,20],[1,1,1,4],[1,5,1,13],[29,4,29,17],[40,2,40,18],[44,14,44,21],[48,1,51,23],[1,20,1,22],[43,2,43,3],[2,16,2,23],[30,4,30,17],[38,2,38,7],[44,4,44,6],[45,4,45,6],[44,11,44,13],[38,11,38,14],[41,4,41,6]]}
[null,null,null,null,"YURTİÇİ HAVALE / POSTA ÇEKİ TALİMATI",null,null,null,null,null,null,null,null,null,null,null,null,null,null,null,null,null,null,null,null,null,1]
[null,"POSTA ÇEKİ",null,null,null,"YURTİÇİ HAVALE",null,null,null,null,null,null,null,null,null,null,null,null,null,null,2400002,null,null,null,null,null,2]
[null,"❌","Yatırma",null,null,null,null,"ON-LINE",null,null,null,null,null,null,null,null,"POSTA"]
[null,null,"Aktarma",2400002,null,null,null,null,null,null,null,null,null,null,null,null,null,null,"Komutta Teslim"]
[null,null,null,null,null,null,null,"Postrestant",null,null,null,null,null,null,null,null,null,null,"Resmi Kurum"]
[null,null,null,null,null,null,null,"(Merkezde / Şubede Ödeme)",null,null,null,null,null,null,null,null,null,null,"Asker / Mütemet"]
[null,null,"Göndericinin"]
[null,null,"Adı Soyadı / Ünvanı :",null," CENNETİN ÇOCUKLARI İNSANİ YARDİM DERNEĞİ"]
[null,null,"Adresi :",null,"AŞAĞI ÖVEÇLER MAHALLESİ. 1325 CADDE NO:13/1 ÇANKAYA/ANKARA"]
[]
[]
[null,null,"Posta Çek Hesap Numarası",null,null,1,7,5,8,0,3,8,9]
[null,null,"T.C. Kimlik Numarası",null,null,null,null,null,null,null,null,null,null,null,null," (Gerçek kişiler için)"]
[null,null,"Vergi Kimlik Numarası",null,null,2,0,6,7,0,2,4,9,3,null,"(Tüzel kişiler / Yabancılar için)"]
[]
[null,null,"Gönderici Notu :"]
[null,null,"-Yurtiçi havale kabul, posta çeki yatırma / aktarma işleminde alıcıya iletilmesi istenen bilgi :"]
[]
[]
[null,null,"-Posta çeki yatırma / aktarma işlemi bir vergiye ait ise; Türü :"]
[null,null,"Türü:",null,"Sicil No :",null,null,null,null,null,null,null,"Dönemi :"]
[]
[]
[null,null,"Aracının Adı Soyadı :"]
[]
[null,null,"T.C. Kimlik Numarası"]
[]
[]
[null,null,"Alıcının"]
[null,null,"Adı Soyadı / Ünvanı :",null,{"$f":"VLOOKUP(U2,_xlnm.Database,2,0)","v":"ISSAM A F ALQADDI"}]
[null,null,"Adresi :",null,{"$f":"VLOOKUP(U2,_xlnm.Database,13,0)","v":"Syria-Aleppo 02"}]
[null,null,"Posta Çek Hesap Numarası"]
[null,null,"T.C. Kimlik Numarası",null,null,{"$f":"MID(VLOOKUP(U2, Table1[[ID]:[TR ID]], 11, FALSE), COLUMN(A1)-COLUMN($A$1)+1, 1)","v":"9"},{"$f":"MID(VLOOKUP(U2, Table1[[ID]:[TR ID]], 11, FALSE), COLUMN(B1)-COLUMN($A$1)+1, 1)","v":"8"},{"$f":"MID(VLOOKUP(U2, Table1[[ID]:[TR ID]], 11, FALSE), COLUMN(C1)-COLUMN($A$1)+1, 1)","v":"8"},{"$f":"MID(VLOOKUP(U2, Table1[[ID]:[TR ID]], 11, FALSE), COLUMN(D1)-COLUMN($A$1)+1, 1)","v":"9"},{"$f":"MID(VLOOKUP(U2, Table1[[ID]:[TR ID]], 11, FALSE), COLUMN(E1)-COLUMN($A$1)+1, 1)","v":"0"},{"$f":"MID(VLOOKUP(U2, Table1[[ID]:[TR ID]], 11, FALSE), COLUMN(F1)-COLUMN($A$1)+1, 1)","v":"1"},{"$f":"MID(VLOOKUP(U2, Table1[[ID]:[TR ID]], 11, FALSE), COLUMN(G1)-COLUMN($A$1)+1, 1)","v":"0"},{"$f":"MID(VLOOKUP(U2, Table1[[ID]:[TR ID]], 11, FALSE), COLUMN(H1)-COLUMN($A$1)+1, 1)","v":"2"},{"$f":"MID(VLOOKUP(U2, Table1[[ID]:[TR ID]], 11, FALSE), COLUMN(I1)-COLUMN($A$1)+1, 1)","v":"1"},{"$f":"MID(VLOOKUP(U2, Table1[[ID]:[TR ID]], 11, FALSE), COLUMN(J1)-COLUMN($A$1)+1, 1)","v":"6"},{"$f":"MID(VLOOKUP(U2, Table1[[ID]:[TR ID]], 11, FALSE), COLUMN(K1)-COLUMN($A$1)+1, 1)","v":"4"}," (Gerçek kişiler için)"]
[null,null,"Vergi Kimlik Numarası",null,null,null,null,null,null,null,null,null,null,null,null,"(Tüzel kişiler / Yabancılar için)"]
[]
[]
[null,null,"Yatırılan Para Türü",null,"❌","TL",null,null,"USD",null,null,"EURO",null,null,null,null,"S.ARAB. RİYALİ"]
[]
[null,null,"Yatırılan Miktar (Rakamla) :",null,null,null,null,null,null,null,null,{"$f":"VLOOKUP(U2,_xlnm.Database,14,0)","v":25450.55}]
[]
[null,null,{"$f":"SpellNumberTRY(L39)","v":"Yirmi Bes Bin Dort Yüz Elli  Lira ve Elli Bes Kurus"}]
[null,null,{"$f":"SpellNumberTRY(L39)","v":"Yirmi Bes Bin Dort Yüz Elli  Lira ve Elli Bes Kurus"}]
[null,"Yukarıda belirtmiş olduğum bilgilerin doğru ve eksiksiz olduğunu taahhüt ederim."]
[null,null,{"$f":"VLOOKUP(U2,_xlnm.Database,6,0)","v":"ISSAM A F"}]
[null,null,null,null,null,null,null,null,null,null,null,"Adı Soyadı:"]
[null,null,null,null,null,null,null,null,null,null,null,{"$f":"E30","v":"ISSAM A F ALQADDI"}]
[null,null,null,null,null,null,null,null,null,null,null,"İmza"]
[]
[null,"Kişisel verileriniz, 6698 sayılı Kişisel Verilerin Korunması Kanunu’na göre işlenmekte olup, detaylı bilgilendirme için işyerlerinde asılı olan bilgilendirme metinlerini okuyunuz ve www.ptt.gov.tr adresini ziyaret ediniz. Kişisel veri politikasına ve haklarınızla ilgili başvuru formuna da web sitemizden ulaşabilirsiniz."]
[]
[]
[]
[null,"Stok No: 150.0001.003238",null,null,null,null,null,null,null,null,null,null,"PTT Matbaası ANKARA"]

{"sheet":"Round 5","index":1,"n_rows":10,"n_cols":16,"rows_kept":10,"cut":false,"hidden":false,"merged":[[0,0,0,18]]}
[]
["#","ID","Alıcının\nAdı Soyadı","Doğum Tarihi Gün","Doğum Tarihi Ay","Doğum Tarihi Yıl","Adı","Soyadı","Uyruk","Baba Adı","Annenin adı","TR ID","Telfon","Adres","Total Basic Salary","Inza Tarihi "]
[1,2400001,"VISAM ABDULRAZZAK MUHAMMED ALDOGMA",2,1,1978,"VISAM ABDULRAZZAK MUHAMMED","ALDOGMA","PS   FİLİSTİN","ABDULREZZAK","LEYLA",98830103046,null,"Syria-Aleppo 01",5000,"2024-12-16"]
[{"$f":"A3+1","v":2},2400002,"ISSAM A F ALQADDI",null,5,1983,"ISSAM A F","ALQADDI","PS   FİLİSTİN","ATA","INTISAR",98890102164,null,"Syria-Aleppo 02",25450.55,"2024-12-17"]
[3,2400003,"SALEM MAJID SALEM ALAJRAMI",16,8,2001,"SALEM MAJID SALEM ","ALAJRAMI","PS   FİLİSTİN","MAJED","HAIFAA",98692108722,null,"Syria-Aleppo 03",16500,"2024-12-18"]
[4,2400004,"HANAN M.A. ALSOURANI",27,11,1956,"HANAN M.A.","ALSOURANI","PS   FİLİSTİN","MUHAMMED","IZDIHAR",98134104954,null,"Syria-Aleppo 04",16501,"2024-12-19"]
[5,2400005,"MANAL ABU DAHER",1,1,1993,"MANAL ","ABU DAHER","PS   FİLİSTİN","ATA","FATMA",98827103110,null,"Syria-Aleppo 05",16502,"2024-12-20"]
[6,2400006,"RASHA I.S. ABUSAMRA",6,5,1989,"RASHA I.S.","ABUSAMRA","PS   FİLİSTİN","ISSAM","HUDA",98989098910,null,"Syria-Aleppo 06",16503,"2024-12-21"]
[7,2400007,"EMAN K A ALGHALBAN",13,3,1987,"EMAN K A","ALGHALBAN","PS   FİLİSTİN","KAMEL","ITAF",98347093182,null,"Syria-Aleppo 07",16504,"2024-12-22"]
[8,2400008,"MAHMOUD J M ALKHATIB",7,11,1990,"MAHMOUD J M ","ALKHATIB","PS   FİLİSTİN","JAMEEL","SABAH",98815082304,null,"Syria-Aleppo 08",16505,"2024-12-23"]

{"sheet":"Sheet","index":2,"n_rows":12,"n_cols":1,"rows_kept":12,"cut":false,"hidden":false,"merged":[[10,2,10,7],[2,10,2,16],[3,10,3,16],[4,10,4,16],[5,10,5,16],[6,10,6,16],[0,9,0,16],[0,2,0,7],[2,2,2,7],[5,2,5,7],[8,2,8,7]]}
["2017-01-01"]
["2017-02-01"]
["2017-03-01"]
["2017-04-01"]
["2017-05-01"]
["2017-06-01"]
["2017-07-01"]
["2017-08-01"]
["2017-09-01"]
["2017-10-01"]
["2017-11-01"]
["2017-12-01"]